Cogmind - Beta 13 @@@ ROGUE MODE // 2024.07.11 @ 03:16:01 Player: SewerBee Result: Destroyed by S-10 Pest with Light Assault Rifle Performance ------------- Evolutions (0) 0 Regions Visited (1) 200 Robots Destroyed (11) 55 Value Destroyed (177) 177 Prototype IDs (0) 0 Alien Tech Used (0) 0 Bonus (0) 0 TOTAL SCORE: 432 Bonus ------- None Cogmind --------- Core Integrity 0/250 Matter 210/300 Energy 78/100 System Corruption 0% Temperature Cool (0) Movement Core (1400) Ox27 Location -10/Materials Parts ------- > --- POWER (1) -------- (None) > --- PROPULSION (2) --- (None) > --- UTILITY (2) ------ Huge Storage Unit ECM Suite > --- WEAPON (2) ------- Light Assault Rifle > --- INVENTORY (25) --- Large Storage Unit High-capacity Matter Pod (0) Signal Interpreter Terrain Scanner Peak State ------------ > --- POWER ------------ Ion Engine > --- PROPULSION ------- Aluminum Leg Aluminum Leg > --- UTILITY ---------- Small Storage Unit Large Storage Unit > --- WEAPON ----------- Light Assault Rifle Light Assault Rifle > --- INVENTORY -------- (None) [Rating: 7] Favorites ----------- Power Ion Engine Engine Ion Engine Propulsion Aluminum Leg Leg Aluminum Leg Utility Large Storage Unit Device ECM Suite Storage Large Storage Unit Weapon Light Assault Rifle Ballistic Gun Light Assault Rifle Launcher Grenade Launcher Build | -11 -10 ------- Run | Yrd Mat Slots Evolved . | . . Power . | . . Propulsion . | . . Utility . | . . Weapon . | . . Parts Attached 14 | 7 7 Power 3 | 3 . Engine 3 | 3 . Core . | . . Reactor . | . . Propulsion 2 | 2 . Treads . | . . Leg 2 | 2 . Wheel . | . . Hover . | . . Flight . | . . Utility 5 | . 5 Device 2 | . 2 Storage 3 | . 3 Processor . | . . Hackware . | . . Protection . | . . Artifact . | . . Weapon 4 | 2 2 Energy Gun . | . . Energy Cannon . | . . Ballistic Gun 3 | 2 1 Ballistic Cannon . | . . Launcher 1 | . 1 Special Weapon . | . . Impact Weapon . | . . Slashing Weapon . | . . Piercing Weapon . | . . Special Melee Weapon . | . . Unidentified Prototypes . | . . Parts Lost 5 | . 5 Power 1 | . 1 Propulsion 2 | . 2 Utility . | . . Weapon 2 | . 2 Highest Loss Streak 5 | . 5 To Critical Strikes . | . . Average Slot Usage (%) 90 | . 90 Engine 13 | . 13 Leg 26 | . 26 Device 9 | . 9 Storage 13 | . 13 Ballistic Gun 14 | . 14 Launcher 11 | . 11 Naked Turns . | . . Heaviest Build 91 | 7 91 Greatest Support 20 | 20 20 Greatest Overweight (x) 30 | . 30 Average Overweight (x) 2 | . 4 Largest Inventory Capacity 25 | 5 25 Average Capacity 16 | 5 19 Most Carried 5 | 1 5 Average Carried 1 | . 2 Final Capacity 25 | 5 25 Final Carried 4 | . 4 Class Distribution -------------------- 100% | Mutant Dominant Class ---------------- Mutant | -10/Materials Resources | -11 -10 ----------- Run | Yrd Mat Matter Collected 311 | 284 27 Remotely . | . . Salvage Created 137 | 59 78 Parts 25 | 5 20 Haulers Intercepted . | . . Recyclers Shooed . | . . Parts Field Recycled . | . . Retrieved Matter . | . . Parts Self-Destructed . | . . Prevented . | . . Kills | -11 -10 ------- Run | Yrd Mat Combat Hostiles Destroyed 4 | 1 3 Guns 1 | 1 . AOE 3 | . 3 Classes Destroyed 7 | 2 5 Worker 2 | . 2 Builder 1 | . 1 Tunneler 1 | 1 . Mechanic 1 | . 1 Watcher 2 | . 2 Swarmer 2 | . 2 Grunt 2 | 1 1 Best Kill Streak 5 | 2 5 Combat Bots Only 2 | 1 2 Max Kills in Single Turn 3 | 1 3 Gunslinging . | . . Exploded 2 | . 2 Melee . | . . Uniques/NPCs Destroyed . | . . Combat | -11 -10 -------- Run | Yrd Mat Hostile Shots Fired 119 | 8 111 Missed 35 | 1 34 Damage Taken 768 | 76 692 Core 254 | 11 243 Absorbed by Shields . | . . Core Remaining (%) 95 | 95 . Volleys Fired 24 | 7 17 Largest 2 | 2 2 Hottest 50 | 40 50 Shots Fired 37 | 14 23 Gun 31 | 14 17 Cannon . | . . Launcher 6 | . 6 Special . | . . Kinetic 31 | 14 17 Thermal . | . . Explosive 6 | . 6 Electromagnetic . | . . Robot Hit Streak 6 | 4 6 Robot Miss Streak 4 | 4 4 Penetration Max . | . . Secondary Targets . | . . Shots Hit Robots 20 | 8 12 Core Hits 18 | 3 15 Critical Kills . | . . Critical Parts Destroyed . | . . Critical Strikes . | . . Melee Attacks . | . . Impact . | . . Slashing . | . . Piercing . | . . Sneak Attacks . | . . Combat Hostiles . | . . Follow-up Attacks . | . . Damage Inflicted 694 | 76 618 Guns 141 | 76 65 Cannons . | . . Explosions 548 | . 548 Melee . | . . Ramming 5 | . 5 Kinetic 141 | 76 65 Thermal 248 | . 248 Explosive 300 | . 300 Electromagnetic . | . . Impact . | . . Slashing . | . . Piercing . | . . Highest Corruption . | . . Average Corruption . | . . Corruption Purged . | . . Corruption Blocked . | . . Overload Shots . | . . Overflow Damage . | . . Projectiles . | . . Explosions . | . . Melee . | . . Knockbacks . | . . Impact . | . . Kinetic . | . . Secondary . | . . Self-Inflicted Damage 46 | . 46 Shots 2 | . 2 Rammed . | . . Targets Rammed 1 | . 1 Kicked 1 | . 1 Crushed . | . . Highest Temperature 12 | 12 10 Average Temperature 7 | 7 7 Received Heat Transfer 72 | 42 30 Siege Activations . | . . Robots Corrupted . | . . Combat Hostiles . | . . Parts Fried . | . . Impact Corruptions . | . . Robots Melted . | . . Combat Hostiles . | . . Parts Melted . | . . Heat Transferred 150 | . 150 Parts Sabotaged . | . . Parts Stolen . | . . Parts Stripped . | . . Power Chain Reactions . | . . Alert | -11 -10 ------- Run | Yrd Mat Peak Influence 255 | 25 255 Initial 16 | . 16 Average 78 | 8 95 Maximum Alert Level 1 | . 1 Low Security (%) 80 | 100 76 Level 1 19 | . 23 Level 2 . | . . Level 3 . | . . Level 4 . | . . Level 5 . | . . High Security . | . . Max Security . | . . Squads Dispatched 2 | . 2 Investigation . | . . Extermination . | . . Reinforcement 2 | . 2 Assault . | . . Garrison . | . . Intercept . | . . Searches Triggered . | . . Construction Impeded . | . . Haulers Reinforced . | . . Active Scanning Responses . | . . Cargo Convoy Interrupts . | . . Stealth | -11 -10 --------- Run | Yrd Mat Distress Signals 2 | . 2 Communications Jammed . | . . Distress Signals . | . . Times Spotted 12 | 1 11 Peak Tracking Total 5 | 1 5 Tactical Retreats 1 | . 1 Traps | -11 -10 ------- Run | Yrd Mat Traps Triggered . | . . Indirectly . | . . Trap Hack Attempts . | . . Triggered . | . . Disarmed . | . . Reprogrammed . | . . Reused . | . . Traps Extracted . | . . Installed . | . . Triggered . | . . Machines | -11 -10 ---------- Run | Yrd Mat Machines Disabled 3 | . 3 Max in Single Turn 3 | . 3 Machines Repaired . | . . Machines Dismantled . | . . Machines Sabotaged . | . . Overloaded Fab Kills . | . . Hacking | -11 -10 --------- Run | Yrd Mat Machines Accessed . | . . Terminals . | . . Fabricators . | . . Repair Stations . | . . Recycling Units . | . . Scanalyzers . | . . Garrison Access . | . . Total Hacks . | . . Successful . | . . Failed . | . . Catastrophic . | . . Database Lockouts . | . . Manual . | . . Terminals . | . . Fabricators . | . . Repair Stations . | . . Recycling Units . | . . Scanalyzers . | . . Garrison Access . | . . Terminal Hacks . | . . Fabricator Hacks . | . . Repair Station Hacks . | . . Recycling Unit Hacks . | . . Scanalyzer . | . . Garrison Access Hacks . | . . Unauthorized Hacks . | . . Terminals . | . . Fabricators . | . . Repair Stations . | . . Recycling Units . | . . Scanalyzers . | . . Garrison Access . | . . Data Cores Recovered . | . . Used . | . . Hacking Detections . | . . Full Trace Events . | . . Feedback Events . | . . Feedback Blocked . | . . Robot Schematics Acquired . | . . Robots Built . | . . Authchips . | . . Time . | . . Total Robot Build Rating . | . . Part Schematics Acquired . | . . Parts Built . | . . Authchips . | . . Time . | . . Total Part Build Rating . | . . Parts Repaired . | . . Time . | . . Parts Recycled . | . . Recycled Matter . | . . Retrieved Matter . | . . Retrieved Components . | . . Parts Scanalyzed . | . . Part Schematics Acquired . | . . Parts Damaged . | . . Bothacking | -11 -10 ------------ Run | Yrd Mat Used RIF Installer . | . . Robots Hacked . | . . Non-combat . | . . Combat . | . . Robot Hacks Applied . | . . Relay Couplers Released . | . . Fabnet Peak Effective % . | . . Robots Rewired . | . . Allies Hacked . | . . Hacks Repelled . | . . Allies | -11 -10 -------- Run | Yrd Mat Total Allies . | . . Largest Group . | . . Highest-Rated Group . | . . Highest-Rated Ally . | . . Total Orders . | . . Ally Attacks . | . . Total Damage . | . . Kills . | . . Allies Corrupted . | . . Allies Melted . | . . Intel | -11 -10 ------- Run | Yrd Mat Robot Analysis Total . | . . Derelict Logs Recovered . | . . Drone Launches . | . . Drone Recoveries . | . . Exploration | -11 -10 ------------- Run | Yrd Mat Turns Passed 753 | 152 601 Spaces Moved 266 | 107 159 Core 37 | 19 18 Treads . | . . Legs 229 | 88 141 Wheels . | . . Hover . | . . Flight . | . . Fastest Speed 50 | 50 120 Average Speed 248 | 107 343 Slowest Speed 1550 | 120 1550 Overloaded Moves . | . . Propulsion Burnouts . | . . Robots Hopped . | . . Cave-ins Triggered . | . . Exploration Rate (%) 18 | 6 31 Regions Visited 1 Branch Regions . Pre-discovered Areas . | . . Known Exits Taken . | . . Unknown Exits Taken 1 | 1 . Scrap Searched . | . . Spaces Dug . | . . Terrain Destroyed 71 | . 71 Melee . | . . Projectile . | . . AOE 71 | . 71 Terrain Rammed . | . . Walls Destroyed . | . . Machines Disabled . | . . Actions | -11 -10 --------- Run | Yrd Mat Total 324 | 130 194 Wait 5 | 5 . Move 265 | 106 159 Hop . | . . Pick Up 7 | 2 5 Fast Attach 9 | 5 4 Attach 2 | . 2 Detach 3 | . 3 Swap 3 | 2 1 Drop 5 | 3 2 Fire 24 | 7 17 Melee . | . . Ram . | . . Kick 1 | . 1 Crush . | . . Escape Stasis . | . . Rewire . | . . Trap . | . . Miscellaneous . | . . Route ------- -11/Scrapyard -10/Materials History --------- Turn | Location | Event 2 | -11/Scrapyard | Met Revision 17 77 | -11/Scrapyard | Discovered new exit (range 8) 153 | -11/Scrapyard | Entered Materials 317 | -10/Materials | Build established: Mutant 738 | -10/Materials | Core integrity fell below 50% 747 | -10/Materials | Core integrity fell below 20% 754 | -10/Materials | Destroyed by S-10 Pest with Light Assault Rifle Last Messages --------------- 00421_ U-05 Engineer builds a Wall. 00425_ U-05 Engineer lays Concrete. 00442_ Acquired ECM Suite. 00451_ Acquired Huge Storage Unit. 00460_ Acquired Hcp. Matter Pod. 00461_ U-05 Engineer builds a Wall. 00492_ O-16 Technician: "IFF HANDSHAKE FAILED. SECURING TERMINAL." 00500_ ALERT: Hostiles spotted, dispatching reinforcements to Terminal M007. 00550_ U-05 Engineer lays Concrete. 00553_ U-05 Engineer builds a Wall. 00652_ K-01 Serf collects debris. 00715_ Grenade Launcher destroyed. 00719_ Lgt. Assault Rifle destroyed. 00726_ Aluminum Leg destroyed. 00730_ Ion Engine destroyed. 00737_ Aluminum Leg destroyed. 00752_ Acquired Lgt. Assault Rifle. [Achievement: First Step to Greatness] Map ----- +----------------------------------------------------+ | ?????????????????????????????????????????????????? | | ?????????????????????????????????????????????????? | | ?????????????????????????????????????????????????? | | ?????????????? ??????????????????????????????????? | | ?????????????#+#?????????????????????????????????? | | ????????????? ?????????????????????????????????? | | ????????????# #????????????????????????????????? | | ???????????? #????????????????????????????????? | | ????????????# #???? ???????????????????????????? | | ????????????? #????????????????????????????????? | | ????????????? #??????????# ??????????????????? | | ????????????? #??#??????# ?????????????????? | | ????????????? ????????? ?????????????????? | | ????????????? ???????? ? ?????????????????? | | ?????? ????? ???? ???? ???###????????????? | | ????"????????# #?????#??#?# [?? ?????????????? | | ???????????#?# #????#?????# ### ?????????????? | | ?????""????###+#####?#????# ????????????? | | ????""""????# #??#???# #???????????? | | ?? """""????# ##?????# """ #???????????? | | # """"" #??# #??????# """ #???????????? | | # """"" #### ###???## """ #???????????? | | + " # #??????# #??#????????? | | ######+### # ######## #???????????? | | #######+########## s """ #???????????? | | = @ """ ######??????? | | """ # #?????? | | s # #?????? | | # ############## s # """ #?????? | | #+### ###### ## # """ #?????? | | ? # ##?#??###### "Y" # """ #?????? | | """ # #??????????# """ # #?????? | | """ # "##??????????# + #?????? | | ?"" # #???????????# # #?????? | | ?"" " ###???????#####+## # ""#?????? | | ?"" " ?????????# ## ## Y"#?????? | | ?"" "#???????#?# ## ## ""#?????? | | ??" " " ?????????# [[[ ## ## #?????? | | ?? " " ?????????# [[[ ## ########?????? | | ????" " ?????????#[ [[[ ## #????????????? | | ??????? "#?????????# ## #????????????? | | ????????? "?????????########## #????????????? | | ???????????????????????# # #????????????? | | ???????????????????????# """ # ####?????????? | | ???????????????????????# """ # !##????????? | | ???????????????????????# """ # !#????????? | | ???????????????????????# / !#????????? | | ???????????????????????# """ # #????????? | | ???????????????????????# """ # !#????????? | | ???????????????????????# """ # !##????????? | +----------------------------------------------------+ Best States ------------- Heat Dissipation 25 Energy Generation 10 Energy Capacity 250 Matter Stores 300 Matter Capacity 300 Sight Range 16 Terrain Scan Range 14 Terrain Scan Density 10 ECM Strength 1 Evasion (%) 55 Item Schematics ----------------- None Robot Schematics ------------------ None Fabricated ------------ Nothing Alien Tech Used ----------------- None Achievements -------------- First Step to Greatness Challenges ------------ None Game ------ Seed ProcessingSlugScythe Manual? 0 Play Time 00:17:10 Cumulative 0.5 hours Start 2024.07.11 @ 02:55:55 End 2024.07.11 @ 03:16:01 Sessions 1 Manual Loads 0 Difficulty Rogue Special Mode None Game No. 2 Rogue 2 Adventurer 0 Explorer 0 Win Type - Total 0 Types 0/0/0/0/0/0/0/0/0 Lore% 0 Gallery% 1 Achievement% 1 Wizard Run 0 Options --------- Layout 1 ASCII 0 Keyboard 1 Movement Numpad Keybinds 0 Fullscreen 1 Font 32/SmallcapsGlow Map View 50x35 Zoom Use 0% Tactical HUD 1 Map Filters NONE Filters NONE Steam 1 RUN: d67736e6-f6a7-4f2b-b54a-6e4b2384533d